bitfinex-derivatives/quotes_ETHF0:USTF0_20250504
["timestamp","ask_amount","ask_price","bid_price","bid_amount"]
[1746357737252,3.688,1834.2,1834.1,6.35869756]
[1746357737647,3.688,1834.2,1834.1,6.75454896]
[1746357738155,3.688,1834.2,1834.1,6.35869756]
[1746357738852,3.688,1834.2,1834.1,47.15869756]
[1746357739056,3.688,1834.2,1834.1,47.55440368]
[1746357739449,3.688,1834.2,1834.1,47.15869756]
[1746357740359,3.688,1834.2,1834.1,47.55458695]
[1746357740861,3.688,1834.2,1834.1,47.15869756]
[1746357741657,3.688,1834.2,1834.1,47.55462269]
[1746357742356,3.688,1834.2,1834.1,47.15869756]
[1746357743060,3.688,1834.2,1834.1,47.55456774]
[1746357743757,3.688,1834.2,1834.1,47.15869756]
[1746357745354,3.688,1834.2,1834.1,47.55467661]
[1746357745856,3.688,1834.2,1834.1,47.15869756]
[1746357746558,3.688,1834.2,1834.1,47.5546816]
[1746357747158,3.688,1834.2,1834.1,47.15869756]
[1746357747961,3.688,1834.2,1834.1,47.55470352]
[1746357748458,3.688,1834.2,1834.1,47.15869756]
[1746357749259,3.688,1834.2,1834.1,47.55481842]
[1746357749761,3.688,1834.2,1834.1,47.15869756]
[1746357750763,3.688,1834.2,1834.1,47.55486776]
[1746357751363,3.688,1834.2,1834.1,47.15869756]
[1746357751968,3.688,1834.2,1834.1,47.55497142]
[1746357752465,3.688,1834.2,1834.1,47.15869756]
[1746357753267,3.688,1834.2,1834.1,47.5550025]
[1746357753866,3.688,1834.2,1834.1,47.15869756]
[1746357754667,3.688,1834.2,1834.1,47.55503548]
[1746357755168,3.688,1834.2,1834.1,47.15869756]
[1746357755967,3.688,1834.2,1834.1,47.55516862]
[1746357756667,3.688,1834.2,1834.1,47.15869756]
[1746357757269,3.688,1834.2,1834.1,47.55518842]
[1746357757768,3.688,1834.2,1834.1,47.15869756]
[1746357758669,3.688,1834.2,1834.1,47.55524392]
[1746357759274,3.688,1834.2,1834.1,47.15869756]
[1746357760069,3.688,1834.2,1834.1,47.55536342]
[1746357760571,3.688,1834.2,1834.1,47.15869756]
[1746357761472,3.688,1834.2,1834.1,47.55539706]
[1746357761874,3.688,1834.2,1834.1,47.15869756]
[1746357762775,3.688,1834.2,1834.1,47.55545289]
[1746357763182,3.688,1834.2,1834.1,47.15869756]
[1746357763982,0.96201592,1834.2,1834.1,47.15869756]
[1746357764181,0.96201592,1834.2,1834.1,47.55569457]
[1746357764581,0.96201592,1834.2,1834.1,47.15869756]
[1746357765384,0.96201592,1834.2,1834.1,47.55576737]
[1746357765885,0.96201592,1834.2,1834.1,47.15869756]
[1746357766684,0.96201592,1834.2,1834.1,47.55583123]
[1746357767186,0.96201592,1834.2,1834.1,47.15869756]
[1746357767988,0.96201592,1834.2,1834.1,47.55607945]
[1746357768585,0.96201592,1834.2,1834.1,47.15869756]
[1746357769087,1.6022,1834.5,1834.4,1.09022]
[1746357769287,1.6022,1834.5,1834.4,4.61222]
[1746357769887,1.6022,1834.5,1834.4,45.41222]
[1746357770088,5.2902,1834.5,1834.4,45.41222]
[1746357770689,5.2902,1834.5,1834.4,45.80964669]
[1746357771290,5.2902,1834.5,1834.4,45.41222]
[1746357772089,5.2902,1834.5,1834.4,45.80965449]
[1746357772592,5.2902,1834.5,1834.4,45.41222]
[1746357773589,5.2902,1834.5,1834.4,45.80964023]
[1746357774193,5.2902,1834.5,1834.4,45.41222]
[1746357774792,5.2902,1834.5,1834.4,45.80971487]
[1746357775290,5.2902,1834.5,1834.4,45.41222]
[1746357776093,5.2902,1834.5,1834.4,45.80972814]
[1746357776596,5.2902,1834.5,1834.4,45.41222]
[1746357777394,5.2902,1834.5,1834.4,45.80972451]
[1746357778093,5.2902,1834.5,1834.4,45.41222]
[1746357778696,5.2902,1834.5,1834.4,45.80972222]
[1746357779293,5.2902,1834.5,1834.4,45.41222]
[1746357780098,5.2902,1834.5,1834.4,45.80971607]
[1746357780699,5.2902,1834.5,1834.4,45.41222]
[1746357780889,5.2902,1834.5,1834.4,47.06292]
[1746357781397,5.2902,1834.5,1834.4,47.46041398]
[1746357781893,5.2902,1834.5,1834.4,47.06292]
[1746357782598,6.38036,1834.5,1834.4,47.06292]
[1746357782797,6.38036,1834.5,1834.4,47.46041883]
[1746357783298,6.38036,1834.5,1834.4,47.06292]
[1746357783996,6.38036,1834.5,1834.4,45.9727]
[1746357784193,6.38036,1834.5,1834.4,3.91954137]
[1746357784398,14.58816,1834.5,1834.4,0.39754137]
[1746357784601,1.09022,1834.4,1834.3,7.21145727]
[1746357784789,2.80922,1834.4,1834.3,7.21145727]
[1746357784992,7.80922,1834.4,1834.3,7.21145727]
[1746357785192,11.49722,1834.4,1834.3,7.21145727]
[1746357786798,6.49722,1834.4,1834.3,7.21145727]
[1746357787504,1.09027,1834.3,1834.2,2.79393]
[1746357787706,4.50417,1834.3,1834.2,2.79393]
[1746357788192,8.19217,1834.3,1834.2,2.79393]
[1746357788397,8.19217,1834.3,1834.2,1.7036]
[1746357789400,1.09033,1834.2,1834.1,3.2078]
[1746357789596,1.09033,1834.2,1834.1,1.7204]
[1746357789597,2.79143,1834.2,1834.1,1.7204]
[1746357790199,6.47943,1834.2,1834.1,1.7204]
[1746357790906,1.09039,1834.1,1834.0,3.52]
[1746357791104,6.43929,1834.1,1834.0,10.73145727]
[1746357795512,6.43929,1834.1,1834.0,3.52]
[1746357798417,1.09045,1834.0,1833.9,8.4564]
[1746357798714,4.34415,1834.0,1833.9,8.4564]
[1746357799115,8.03215,1834.0,1833.9,8.4564]
[1746357799915,1.09057,1833.8,1833.7,69.54525727]
[1746357800216,4.77857,1833.8,1833.7,7.21145727]
[1746357802618,9.77857,1833.8,1833.7,7.21145727]
[1746357803117,11.49847,1833.8,1833.7,7.21145727]
[1746357803618,6.49847,1833.8,1833.7,7.21145727]
[1746357804019,5.4079,1833.8,1833.5,5.87075]
[1746357804318,6.49847,1833.8,1833.7,1.5722]
[1746357806214,4.77857,1833.8,1833.7,1.5722]
[1746357808914,3.688,1833.8,1833.7,2.66283]
[1746357809114,4.77857,1833.8,1833.7,2.66283]
[1746357809417,4.77857,1833.8,1833.7,6.18183]
[1746357809714,4.77857,1833.8,1833.7,5.0912]
[1746357812723,3.688,1833.8,1833.7,9.38963]
[1746357815512,3.688,1833.8,1833.7,14.38963]
[1746357815812,3.688,1833.8,1833.7,9.38963]
[1746357820518,3.688,1833.8,1833.7,6.18183]
[1746357820718,3.688,1833.8,1833.7,9.38963]
[1746357824229,3.4058,1834.2,1834.1,1.09039]
[1746357824620,3.4058,1834.2,1834.1,2.80199]
[1746357824820,3.4058,1834.2,1834.1,3.59239]
[1746357825127,7.0938,1834.2,1834.1,3.59239]
[1746357833136,4.5356,1834.2,1834.1,3.59239]
[1746357833329,3.688,1834.2,1834.1,3.59239]
[1746357834735,3.688,1834.2,1834.1,6.80019]
[1746357839543,4.5552,1834.2,1834.1,6.80019]
[1746357841740,4.5552,1834.2,1834.1,3.59239]
[1746357841929,4.5552,1834.2,1834.1,6.80019]
[1746357845136,4.5552,1834.2,1834.1,6.00979]
[1746357847640,4.5552,1834.2,1834.1,2.80199]
[1746357847828,4.5552,1834.2,1834.1,6.00979]
[1746357855246,3.688,1834.2,1834.1,6.00979]
[1746357856040,3.52e-06,1834.2,1834.1,6.00979]
[1746357856246,3.64404836,1834.6,1834.5,1.09016]
[1746357856449,3.64404836,1834.6,1834.5,48.61396]
[1746357856938,5.24984836,1834.6,1834.5,48.61396]
[1746357857138,8.93784836,1834.6,1834.5,48.61396]
[1746357857940,8.93784836,1834.6,1834.5,50.29536]
[1746357858546,5.2938,1834.6,1834.5,50.29536]
[1746357858845,3.688,1834.6,1834.5,50.29536]
[1746357859046,3.688,1834.6,1834.5,51.15666]
[1746357863249,3.688,1834.6,1834.5,47.94886]
[1746357863553,3.688,1834.6,1834.5,51.15666]
[1746357865950,3.688,1834.6,1834.5,51.96516]
[1746357868452,3.688,1834.6,1834.5,51.15666]
[1746357874260,3.688,1834.6,1834.5,58.36811727]
[1746357878266,3.688,1834.6,1834.5,51.15666]
[1746357886778,12.3188,1834.6,1834.5,6.7198]
[1746357886967,12.3188,1834.6,1834.5,3.2078]
[1746357887273,11.2287,1834.6,1834.5,3.2078]
[1746357887476,12.3188,1834.6,1834.4,13.93125727]
[1746357887665,1.6906,1834.5,1834.4,10.41925727]
[1746357887872,2.78076,1834.5,1834.4,7.21145727]
[1746357888072,11.46876,1834.5,1834.4,5.91005727]
[1746357888877,1.09025,1834.4,1834.2,10.83755038]
[1746357889075,0.8268,1834.3,1834.2,11.92788038]
[1746357889575,7.4017,1834.3,1834.2,11.92788038]
[1746357890179,11.0897,1834.3,1834.2,11.92788038]
[1746357890570,6.0897,1834.3,1834.2,11.92788038]
[1746357892384,6.0897,1834.3,1834.2,1.09033]
[1746357893681,6.0897,1834.3,1834.1,4.60239]
[1746357893881,0.8381,1834.2,1834.1,4.60239]
[1746357894084,6.1285,1834.2,1834.1,4.60239]
[1746357894881,6.1285,1834.2,1834.1,3.512]
[1746357895779,7.21885,1834.2,1834.0,3.2078]
[1746357896083,1.681,1834.1,1834.0,3.2078]
[1746357896287,1.681,1834.1,1834.0,6.7208]
[1746357896582,2.77139,1834.1,1834.0,6.7208]
[1746357897085,5.369,1834.1,1834.0,6.7208]
[1746357897385,6.45939,1834.1,1834.0,6.7208]
[1746357900688,5.369,1834.1,1834.0,6.7208]
[1746357900888,6.45939,1834.1,1834.0,6.7208]
[1746357902282,6.45939,1834.1,1834.0,3.2078]
[1746357905594,6.45939,1834.1,1834.0,4.29825]
[1746357907598,6.45939,1834.1,1834.0,3.2078]
[1746357911502,2.72627,1834.0,1833.7,3.2078]
[1746357911700,1.09057,1833.8,1833.7,3.2078]
[1746357911999,1.09057,1833.8,1833.7,4.9389]
[1746357912297,4.77857,1833.8,1833.7,4.9389]
[1746357912498,6.35077,1833.8,1833.7,4.9389]
[1746357915798,6.35077,1833.8,1833.7,1.7311]
[1746357919106,1.09063,1833.7,1833.6,4.351]
[1746357919310,3.60123,1833.7,1833.6,4.351]
[1746357919807,3.60123,1833.7,1833.6,5.9236]
[1746357920208,7.28923,1833.7,1833.6,5.0836]
[1746357920508,7.28923,1833.7,1833.6,3.511]
[1746357922805,7.28923,1833.7,1833.6,5.1134]
[1746357925411,7.28923,1833.7,1833.6,1.6024]
[1746357928714,1.09069,1833.6,1833.5,3.2078]
[1746357928911,2.79709,1833.6,1833.5,4.9382]
[1746357929109,6.48509,1833.6,1833.5,4.9382]
[1746357930016,4.77869,1833.6,1833.5,4.9382]
[1746357930214,4.77869,1833.6,1833.5,1.7304]
[1746357930414,5.58119,1833.6,1833.5,1.7304]
[1746357930614,7.28759,1833.6,1833.5,1.7304]
[1746357933815,1.09075,1833.5,1833.4,0.8561]
[1746357934012,1.09081,1833.4,1833.3,4.7947]
[1746357934310,1.94191,1833.4,1833.3,4.7947]
[1746357935120,5.62991,1833.4,1833.3,4.7947]
[1746357936313,4.77881,1833.4,1833.3,4.7947]
[1746357943834,3.688,1833.4,1833.3,5.88557]
[1746357944036,3.688,1833.4,1833.3,14.39557]
[1746357945127,1.09069,1833.6,1833.4,1.09078]
[1746357945327,1.09069,1833.6,1833.5,4.013]
[1746357945631,1.09067,1833.7,1833.5,5.10374]
[1746357945831,1.09067,1833.7,1833.6,1.6352]
[1746357946326,4.77867,1833.7,1833.6,1.6352]
[1746357949138,3.688,1833.7,1833.6,14.44369]
[1746357949844,9.10256472,1834.3,1834.1,1.09034]
[1746357950039,9.10256472,1834.3,1834.2,6.0175]
[1746357950340,12.79056472,1834.3,1834.2,6.0175]
[1746357950744,13.88083472,1834.3,1834.2,6.0175]
[1746357950943,12.79056472,1834.3,1834.2,6.0175]
[1746357951443,12.79056472,1834.3,1834.2,7.10783]
[1746357951742,13.88083472,1834.3,1834.2,6.0175]
[1746357952142,4.77827,1834.3,1834.2,6.0175]
[1746357952642,3.688,1834.3,1834.2,6.0175]
[1746357954037,4.77827,1834.3,1834.2,6.0175]
[1746357954638,6.48717,1834.3,1834.2,5.1888]
[1746357954836,6.48717,1834.3,1834.2,3.51]
[1746357956236,1.09039,1834.1,1834.0,2.81164]
[1746357956545,1.09045,1834.0,1833.9,3.2078]
[1746357956745,2.80015,1834.0,1833.9,3.2078]
[1746357957143,6.48815,1834.0,1833.9,3.2078]
[1746357957646,1.09057,1833.8,1833.7,5.1302]
[1746357957946,1.09057,1833.8,1833.7,6.22083]
[1746357958242,4.77857,1833.8,1833.7,6.22083]
[1746357958746,4.77857,1833.8,1833.7,5.1302]
[1746357959045,4.77857,1833.8,1833.7,8.338]
[1746357959246,6.50587,1833.8,1833.7,8.338]
[1746357959448,6.50587,1833.8,1833.7,1.6212]
[1746357959642,5.4153,1833.8,1833.7,2.71183]
[1746357959945,5.4153,1833.8,1833.7,5.91963]
[1746357961646,5.4153,1833.8,1833.7,4.829]
[1746357962547,6.50587,1833.8,1833.7,4.829]
[1746357962946,6.50587,1833.8,1833.7,3.2078]
[1746357964951,6.50587,1833.8,1833.7,4.8399]
[1746357965847,6.50587,1833.8,1833.7,3.2078]
[1746357967652,1.09069,1833.6,1833.5,4.8399]
[1746357967947,1.09081,1833.4,1833.3,4.3525]
[1746357968151,1.09081,1833.4,1833.3,7.5603]
[1746357968456,1.09081,1833.4,1833.3,4.0533]
[1746357968651,1.09081,1833.4,1833.3,5.7357]
[1746357969257,4.77881,1833.4,1833.3,5.7357]
[1746357969553,6.49581,1833.4,1833.3,4.8902]
[1746357974360,6.49661,1833.4,1833.3,4.8902]
[1746357975359,4.77961,1833.4,1833.3,5.98107]
[1746357977163,4.77961,1833.4,1833.3,4.8902]
[1746357980463,4.77961,1833.4,1833.3,5.98107]
[1746357980664,3.6888,1833.4,1833.3,10.98107]
[1746357981267,0.0008,1833.4,1833.3,10.98107]
[1746357986072,0.0008,1833.4,1833.3,5.98107]
[1746357994178,3.6888,1833.4,1833.3,5.98107]
[1746357995282,0.0008,1833.4,1833.3,5.98107]
[1746357997083,0.0008,1833.4,1833.3,9.48807]
[1746357997387,3.6888,1833.4,1833.3,9.48807]
[1746357998087,0.0008,1833.4,1833.3,9.48807]
[1746357999088,7.94228836,1834.1,1833.8,1.09055]
[1746357999389,4.38425,1834.0,1833.8,4.29835]
[1746357999690,1.6505,1833.9,1833.8,45.09835]
[1746357999890,1.6505,1833.9,1833.8,46.81905]
[1746358000091,5.3385,1833.9,1833.8,46.81905]
[1746358000290,5.3385,1833.9,1833.8,45.7285]
[1746358000491,5.3385,1833.9,1833.8,46.81907]
[1746358001391,5.3385,1833.9,1833.8,6.01907]
[1746358009591,6.42901,1833.9,1833.8,4.9285]
[1746358009797,6.42901,1833.9,1833.8,4.29837]
[1746358009998,5.3385,1833.9,1833.8,4.29837]
[1746358011400,5.3385,1833.9,1833.8,5.99887]
[1746358014803,6.42901,1833.9,1833.8,5.99887]
[1746358015301,6.42901,1833.9,1833.8,3.2078]
[1746358015804,5.3385,1833.9,1833.8,4.29837]
[1746358016396,5.3385,1833.9,1833.8,5.91317]
[1746358021714,3.688,1833.9,1833.8,5.91317]
[1746358025612,3.688,1833.9,1833.8,46.71317]
[1746358031023,5.3222,1833.9,1833.8,46.71317]
[1746358033224,5.3222,1833.9,1833.8,2.70537]
[1746358033424,5.3222,1833.9,1833.8,5.91317]
[1746358036426,3.688,1833.9,1833.8,5.91317]
[1746358037730,3.688,1833.9,1833.8,9.41817]
[1746358047540,6.2352,1833.9,1833.8,9.41817]
[1746358047735,6.2352,1833.9,1833.8,16.6577076]
[1746358050342,3.688,1833.9,1833.8,16.6577076]
[1746358050541,3.688,1833.9,1833.8,17.4515076]
[1746358052045,3.688,1833.9,1833.8,16.6577076]
[1746358053147,0.8334,1834.1,1834.0,1.09045]
[1746358053347,2.4498,1834.1,1834.0,4.29825]
[1746358053748,2.4498,1834.1,1834.0,3.2078]
[1746358053948,3.54019,1834.1,1834.0,3.2078]
[1746358054150,7.22819,1834.1,1834.0,3.2078]
[1746358054449,6.1378,1834.1,1834.0,3.2078]
[1746358055046,6.1378,1834.1,1834.0,4.29825]
[1746358055949,4.5214,1834.1,1834.0,4.29825]
[1746358056147,0.8007,1834.2,1834.1,1.09039]
[1746358056348,2.5684,1834.3,1834.2,1.09033]
[1746358056947,2.5684,1834.3,1834.2,2.69953]
[1746358057147,4.5274,1834.3,1834.2,2.69953]
[1746358057347,3.688,1834.3,1834.2,5.90733]
[1746358058741,3.688,1834.3,1834.2,6.73053]
[1746358059948,3.688,1834.3,1834.2,7.16138384]
[1746358060142,3.64404836,1834.6,1834.5,1.09016]
[1746358060543,3.64404836,1834.6,1834.5,2.73676]
[1746358061243,7.33204836,1834.6,1834.5,2.73676]
[1746358062955,3.688,1834.6,1834.5,2.73676]
[1746358066251,5.408,1834.6,1834.5,5.94456]
[1746358066748,6.4981,1834.6,1834.5,3.2078]
[1746358072262,1.09016,1834.5,1834.4,1.09021]
[1746358072464,2.80516,1834.5,1834.4,4.29801]
[1746358073164,6.49316,1834.5,1834.4,4.29801]
[1746358073563,6.49316,1834.5,1834.4,3.2078]
[1746358074763,1.09022,1834.4,1834.3,2.77745]
[1746358074967,3.53252,1834.4,1834.3,2.77745]
[1746358075162,7.22052,1834.4,1834.3,5.98525]
[1746358075963,7.22052,1834.4,1834.3,4.895]
[1746358076463,6.1303,1834.4,1834.3,4.895]
[1746358076868,7.22052,1834.4,1834.3,4.895]
[1746358077667,5.61542,1834.4,1834.3,5.6783]
[1746358081971,6.40032,1834.4,1834.3,5.6783]
[1746358082878,6.40032,1834.4,1834.3,4.895]
[1746358083473,6.40032,1834.4,1834.3,1.6872]
[1746358083680,1.09027,1834.3,1834.2,3.503]
[1746358083978,2.73127,1834.3,1834.2,3.503]
[1746358084174,6.41927,1834.3,1834.1,6.71305]
[1746358084380,6.41927,1834.3,1834.1,10.21405]
[1746358084581,2.73133,1834.2,1834.1,6.71309]
[1746358084772,2.73133,1834.2,1834.1,5.6227]
[1746358085074,6.41933,1834.2,1834.1,5.6227]
[1746358085580,5.329,1834.2,1834.1,6.71309]
[1746358085877,6.41933,1834.2,1834.1,6.71309]
[1746358086479,5.329,1834.2,1834.1,6.71309]
[1746358086881,6.41933,1834.2,1834.1,3.2078]
[1746358087175,1.09045,1834.0,1833.9,7.25315576]
[1746358087580,1.09051,1833.9,1833.8,5.9223]
[1746358087782,2.71961,1833.9,1833.8,5.9223]
[1746358088080,6.40761,1833.9,1833.8,5.9223]
[1746358088679,6.40761,1833.9,1833.8,1.5802]
[1746358090779,1.09057,1833.8,1833.7,10.46095576]
[1746358090980,4.37527,1833.8,1833.7,10.46095576]
[1746358091180,8.06327,1833.8,1833.7,10.46095576]
[1746358092387,8.06327,1833.8,1833.7,12.02645576]
[1746358092687,8.06327,1833.8,1833.7,10.46095576]
[1746358092875,8.06327,1833.8,1833.7,7.25315576]
[1746358093681,8.06327,1833.8,1833.6,1.5627]
[1746358093682,4.77863,1833.8,1833.6,1.5627]
[1746358093882,4.77863,1833.8,1833.7,2.4152]
[1746358098885,4.77863,1833.8,1833.7,1.5627]
[1746358099589,5.63003,1833.8,1833.7,1.5627]
[1746358100787,1.09069,1833.6,1833.5,55.90509425]
[1746358100987,1.09069,1833.6,1833.5,53.55489425]
[1746358101292,4.77869,1833.6,1833.5,51.83769425]
[1746358101484,6.46949,1833.6,1833.5,51.83769425]
[1746358107192,1.09081,1833.4,1833.3,4.0696]
[1746358107397,1.09081,1833.4,1833.3,3.2078]
[1746358107798,3.63261,1833.4,1833.3,3.2078]
[1746358108196,7.32061,1833.4,1833.3,3.2078]
[1746358109001,1.09087,1833.3,1833.2,1.5748]
[1746358109201,6.49817,1833.3,1833.2,1.5748]
[1746358110398,9.22167,1833.3,1833.2,1.5748]
[1746358121502,1.09093,1833.2,1833.1,0.8238]
[1746358121697,3.57343,1833.2,1833.1,0.8238]
[1746358122302,7.26143,1833.2,1833.1,0.8238]
[1746358124107,7.26143,1833.2,1833.1,2.4589]
[1746358129307,1.09099,1833.1,1833.0,3.503]
[1746358129508,3.59359,1833.1,1833.0,3.503]
[1746358129709,3.59359,1833.1,1833.0,5.0699]
[1746358130202,7.28159,1833.1,1833.0,5.0699]
[1746358141018,10.00549,1833.1,1833.0,5.0699]
[1746358144913,10.00549,1833.1,1833.0,1.5669]
[1746358147220,1.09105,1833.0,1832.9,0.8118]
[1746358147420,2.65315,1833.0,1832.9,0.8118]
[1746358148123,1.09111,1832.9,1832.8,1.7125]
[1746358148419,2.74151,1832.9,1832.8,1.7125]
[1746358149220,6.42951,1832.9,1832.8,1.7125]
[1746358151822,1.09123,1832.7,1832.6,15.05223576]
[1746358152119,1.09123,1832.7,1832.6,15.89973576]
[1746358152719,1.09123,1832.7,1832.6,14.80845576]
[1746358153115,4.77923,1832.7,1832.6,16.52405576]
[1746358154123,6.35983,1832.7,1832.6,16.52405576]
[1746358154825,4.77923,1832.7,1832.6,17.61534576]
[1746358155324,4.77923,1832.7,1832.6,16.52405576]
[1746358156022,6.35983,1832.7,1832.6,13.02405576]
[1746358156618,6.35983,1832.7,1832.6,5.7709]
[1746358158725,4.77923,1832.7,1832.6,5.7709]
[1746358159527,4.77923,1832.7,1832.6,6.86219]
[1746358160229,4.77923,1832.7,1832.6,5.7709]
[1746358161926,4.77923,1832.7,1832.6,6.86219]
[1746358164232,4.77923,1832.7,1832.6,5.7709]
[1746358166927,4.77923,1832.7,1832.6,6.5687]
[1746358167530,3.688,1832.7,1832.6,7.65999]
[1746358167730,4.77923,1832.7,1832.6,7.65999]
[1746358167929,3.688,1832.7,1832.6,7.65999]
[1746358168430,4.77923,1832.7,1832.6,7.65999]
[1746358169533,3.688,1832.7,1832.6,7.65999]
[1746358171027,4.77923,1832.7,1832.6,7.65999]
[1746358171830,3.688,1832.7,1832.6,7.65999]
[1746358176931,6.4162,1832.7,1832.6,7.65999]
[1746358178533,6.4162,1832.7,1832.6,4.45219]
[1746358178725,6.4162,1832.7,1832.6,7.65999]
[1746358180532,7.50743,1832.7,1832.6,7.65999]
[1746358180931,6.4162,1832.7,1832.6,7.65999]
[1746358181132,7.50743,1832.7,1832.6,6.86219]
[1746358181629,7.50743,1832.7,1832.6,5.7709]
[1746358183033,7.50743,1832.7,1832.6,6.86219]
[1746358183235,6.4162,1832.7,1832.6,6.86219]
[1746358186536,7.50743,1832.7,1832.6,6.86219]
[1746358187533,6.4162,1832.7,1832.6,6.86219]
[1746358188335,7.50743,1832.7,1832.6,6.86219]
[1746358188935,7.50743,1832.7,1832.6,6.01469]
[1746358189135,10.03633,1832.7,1832.6,6.01469]
[1746358190038,10.03633,1832.7,1832.6,4.9234]
[1746358190338,10.03633,1832.7,1832.6,3.2078]
[1746358191339,8.9451,1832.7,1832.5,10.75115576]
[1746358191538,0.8349,1832.6,1832.5,13.52595576]
[1746358191732,0.8349,1832.6,1832.5,11.84245576]
[1746358192239,5.61419,1832.6,1832.5,11.84245576]
[1746358192439,5.61419,1832.6,1832.5,4.5893]
[1746358194138,4.5229,1832.6,1832.5,4.5893]
[1746358194343,3.688,1832.6,1832.5,4.5893]
[1746358194740,7.26919,1832.6,1832.5,4.5893]
[1746358195344,7.26919,1832.6,1832.5,3.498]
[1746358195645,9.99749,1832.6,1832.5,3.498]
[1746358197542,9.99749,1832.6,1832.5,6.7058]
[1746358198445,7.2734,1832.6,1832.5,7.79715]
[1746358198847,6.4163,1832.6,1832.5,7.79715]
[1746358200247,6.4163,1832.6,1832.5,12.79715]
[1746358201750,6.4163,1832.6,1832.5,31.76908958]
[1746358202047,6.4163,1832.6,1832.5,26.76908958]
[1746358203344,0.56421308,1832.6,1832.5,31.76908958]
[1746358203648,4.38e-06,1832.6,1832.5,31.76908958]
[1746358203953,4.38e-06,1832.6,1832.5,72.56908958]
[1746358205154,4.38e-06,1832.6,1832.5,74.28628958]
[1746358205844,2.4528,1833.3,1833.2,1.09093]
[1746358206451,2.4528,1833.3,1833.2,2.66033]
[1746358211354,4.4372,1833.3,1833.2,2.66033]
[1746358216561,5.52807,1833.3,1833.2,2.66033]
[1746358217060,5.52807,1833.3,1833.2,1.5694]
[1746358218358,1.09093,1833.2,1833.1,4.29879]
[1746358218560,3.46823,1833.2,1833.1,4.29879]
[1746358219357,3.46823,1833.2,1833.1,1.09099]
[1746358219661,3.46823,1833.2,1833.1,4.29879]
[1746358219860,2.3773,1833.2,1833.1,4.29879]
[1746358223467,3.46823,1833.2,1833.1,4.29879]
[1746358223961,2.3773,1833.2,1833.1,4.29879]
[1746358228969,3.46823,1833.2,1833.1,4.29879]
[1746358229171,2.3773,1833.2,1833.1,4.29879]
[1746358229469,3.46823,1833.2,1833.1,4.29879]
[1746358230270,3.46823,1833.2,1833.1,3.2078]
[1746358230965,2.3773,1833.2,1833.1,4.29879]
[1746358231366,2.3773,1833.2,1833.1,5.91749]
[1746358232070,3.46823,1833.2,1833.1,4.8265]
[1746358232969,3.46823,1833.2,1833.1,3.2078]
[1746358234372,3.46823,1833.2,1833.1,4.29879]
[1746358234870,3.46823,1833.2,1833.1,3.2078]
[1746358235872,8.46823,1833.2,1833.1,3.2078]
[1746358237772,8.46823,1833.2,1833.1,4.29879]
[1746358237773,2.3773,1833.2,1833.1,4.29879]
[1746358237965,0.8525,1833.3,1833.2,1.09093]
[1746358238259,0.8525,1833.3,1833.2,3.57083]
[1746358239374,3.61613,1833.4,1833.2,3.57083]
[1746358239375,1.09083,1833.4,1833.3,1.09087]
[1746358239573,1.09083,1833.4,1833.3,2.80757]
[1746358239984,1.87769,1833.5,1833.3,2.80757]
[1746358240276,1.87769,1833.5,1833.4,0.82331]
[1746358240572,3.57649,1833.5,1833.4,0.82331]
[1746358240777,1.09081,1833.4,1833.3,1.09083]
[1746358241072,3.57649,1833.5,1833.3,1.09083]
[1746358241573,2.4857,1833.5,1833.3,1.09083]
[1746358241775,1.09081,1833.4,1833.3,1.09083]
[1746358242573,3.57649,1833.5,1833.3,1.09083]
[1746358242776,3.57648,1833.5,1833.3,1.09083]
[1746358243074,2.4857,1833.5,1833.4,1.09081]
[1746358243467,2.4857,1833.5,1833.4,2.79541]
[1746358245575,1.09071,1833.6,1833.4,2.79541]
[1746358245776,1.09066,1833.7,1833.5,3.56633]
[1746358245980,1.09066,1833.7,1833.6,1.6522]
[1746358247176,3.52523,1833.8,1833.6,2.74289]
[1746358247475,1.09063,1833.7,1833.6,1.6522]
[1746358247678,3.52521,1833.8,1833.6,2.74289]
[1746358247875,2.4346,1833.8,1833.7,1.09063]
[1746358248078,2.4346,1833.8,1833.7,2.74203]
[1746358248575,3.52517,1833.8,1833.7,1.6514]
[1746358248972,2.4346,1833.8,1833.7,2.74203]
[1746358250280,3.52517,1833.8,1833.7,1.6514]
[1746358251875,2.4346,1833.8,1833.7,2.74203]
[1746358252079,3.52517,1833.8,1833.7,1.6514]
[1746358253684,3.52517,1833.8,1833.7,2.74203]
[1746358255584,3.52517,1833.8,1833.7,1.6514]
[1746358256783,3.52517,1833.8,1833.7,2.74203]
[1746358257783,3.52517,1833.8,1833.7,1.6514]
[1746358259385,2.4346,1833.8,1833.7,2.74203]
[1746358259982,3.52517,1833.8,1833.7,2.74203]
[1746358261282,3.52517,1833.8,1833.7,1.6514]
[1746358262082,1.09063,1833.7,1833.6,1.09065]
[1746358262282,2.79443,1833.7,1833.6,1.09065]
[1746358263978,2.79443,1833.7,1833.6,2.78825]
[1746358265079,2.79443,1833.7,1833.6,1.6976]
[1746358265275,1.09069,1833.6,1833.5,4.0312]
[1746358265479,2.67409,1833.6,1833.5,4.0312]
[1746358265880,2.67409,1833.6,1833.5,3.2078]
[1746358266685,1.09075,1833.5,1833.4,3.492]
[1746358266875,4.46705,1833.5,1833.4,3.492]
[1746358267076,7.67485,1833.5,1833.4,3.492]
[1746358267380,1.09081,1833.4,1833.3,7.24190113]
[1746358267581,2.80041,1833.4,1833.3,7.24190113]